[Event "Titled Tuesday Blitz July 26 Early 2022"]
[White "Yuan, Qingyu"]
[Black "Howell, David W L"]
[WhiteFideId "8609772"]
[BlackFideId "410608"]
[WhiteElo "2359"]
[BlackElo "2559"]
[Result "0-1"]
[Round "10"]
[TimeControl "180+1"]
[Date "2022.07.26"]
[WhiteClock "0:00:05"]
[BlackClock "0:00:08"]

1. e4 {[%clk 0:03:00]}  c5 {[%clk 0:02:59]} 2. Nf3 {[%clk 0:03:01]}  d6 {[%clk 0:02:59]} 3. Bb5+ {[%clk 0:03:01]}  Nd7 {[%clk 0:02:59]} 4. c4 {[%clk 0:03:01]}  g6 {[%clk 0:02:58]} 5. Nc3 {[%clk 0:02:59]}  Bg7 {[%clk 0:02:58]} 6. h3 {[%clk 0:02:58]}  Nf6 {[%clk 0:02:58]} 7. d3 {[%clk 0:02:59]}  O-O {[%clk 0:02:58]} 8. Ba4 {[%clk 0:02:59]}  b6 {[%clk 0:02:51]} 9. Be3 {[%clk 0:02:53]}  Bb7 {[%clk 0:02:50]} 10. O-O {[%clk 0:02:53]}  Rc8 {[%clk 0:02:47]} 11. Qd2 {[%clk 0:02:51]}  e6 {[%clk 0:02:39]} 12. Bxd7 {[%clk 0:02:44]}  Nxd7 {[%clk 0:02:33]} 13. Bg5 {[%clk 0:02:34]}  f6 {[%clk 0:02:16]} 14. Bh6 {[%clk 0:02:33]}  Ne5 {[%clk 0:02:15]} 15. Bxg7 {[%clk 0:02:09]}  Nxf3+ {[%clk 0:02:13]} 16. gxf3 {[%clk 0:02:10]}  Kxg7 {[%clk 0:02:14]} 17. d4 {[%clk 0:02:03]}  f5 {[%clk 0:02:06]} 18. Kg2 {[%clk 0:01:41]}  Qf6 {[%clk 0:01:33]} 19. d5 {[%clk 0:01:24]}  Rce8 {[%clk 0:01:22]} 20. Qf4 {[%clk 0:01:09]}  e5 {[%clk 0:01:06]} 21. Qg3 {[%clk 0:00:55]}  Bc8 {[%clk 0:00:59]} 22. h4 {[%clk 0:00:51]}  h6 {[%clk 0:00:38]} 23. Rae1 {[%clk 0:00:40]}  Kh7 {[%clk 0:00:29]} 24. Rh1 {[%clk 0:00:33]}  Bd7 {[%clk 0:00:24]} 25. a3 {[%clk 0:00:24]}  a6 {[%clk 0:00:22]} 26. a4 {[%clk 0:00:20]}  Re7 {[%clk 0:00:17]} 27. b3 {[%clk 0:00:20]}  Rb8 {[%clk 0:00:17]} 28. Ra1 {[%clk 0:00:17]}  Qf8 {[%clk 0:00:16]} 29. Kf1 {[%clk 0:00:16]}  Rf7 {[%clk 0:00:16]} 30. Ke2 {[%clk 0:00:16]}  Rf6 {[%clk 0:00:16]} 31. Rh2 {[%clk 0:00:16]}  Qf7 {[%clk 0:00:17]} 32. Rg1 {[%clk 0:00:14]}  Rf8 {[%clk 0:00:17]} 33. Rhg2 {[%clk 0:00:13]}  Be8 {[%clk 0:00:16]} 34. Qh2 {[%clk 0:00:10]}  Qb7 {[%clk 0:00:15]} 35. Rg3 {[%clk 0:00:09]}  b5 {[%clk 0:00:14]} 36. axb5 {[%clk 0:00:10]}  axb5 {[%clk 0:00:14]} 37. Kd3 {[%clk 0:00:10]}  fxe4+ {[%clk 0:00:12]} 38. fxe4 {[%clk 0:00:05]}  bxc4+ {[%clk 0:00:10]} 39. bxc4 {[%clk 0:00:03]}  Rxf2 {[%clk 0:00:10]} 40. R1g2 {[%clk 0:00:03]}  Qb2 {[%clk 0:00:09]} 41. Rxf2 {[%clk 0:00:02]}  Rxf2 {[%clk 0:00:09]} 42. Qxf2 {[%clk 0:00:01]}  Qxf2 {[%clk 0:00:09]} 43. Re3 {[%clk 0:00:02]}  Bd7 {[%clk 0:00:07]} 44. Ne2 {[%clk 0:00:02]}  Bg4 {[%clk 0:00:06]} 45. Ng3 {[%clk 0:00:02]}  Bd1 {[%clk 0:00:05]} 46. Ne2 {[%clk 0:00:03]}  Bxe2+ {[%clk 0:00:05]} 47. Rxe2 {[%clk 0:00:03]}  Qd4+ {[%clk 0:00:05]} 48. Kc2 {[%clk 0:00:04]}  Qxc4+ {[%clk 0:00:06]} 49. Kd2 {[%clk 0:00:04]}  Qd4+ {[%clk 0:00:07]} 50. Ke1 {[%clk 0:00:05]}  Qg1+ {[%clk 0:00:08]} 51. Kd2 {[%clk 0:00:05]}  Qg3 {[%clk 0:00:08]} 52. Rh2 {[%clk 0:00:05]}  Qxh2+ {[%clk 0:00:08]} 0-1


[Site "https://www.chess.com"]

[Event "Titled Tuesday Blitz July 26 Early 2022"]
[White "Zhigalko, Sergei"]
[Black "Lazavik, Denis"]
[WhiteFideId "13502956"]
[BlackFideId "13515110"]
[WhiteElo "2662"]
[BlackElo "2437"]
[Result "1/2-1/2"]
[Round "10"]
[TimeControl "180+1"]
[Date "2022.07.26"]
[WhiteClock "0:00:05"]
[BlackClock "0:00:05"]

1. e4 {[%clk 0:03:00]}  e5 {[%clk 0:03:00]} 2. Nf3 {[%clk 0:03:00]}  Nc6 {[%clk 0:03:01]} 3. Bb5 {[%clk 0:03:00]}  Nf6 {[%clk 0:03:01]} 4. O-O {[%clk 0:03:00]}  Nxe4 {[%clk 0:03:01]} 5. d4 {[%clk 0:03:00]}  Nd6 {[%clk 0:03:01]} 6. Bxc6 {[%clk 0:03:01]}  dxc6 {[%clk 0:03:02]} 7. dxe5 {[%clk 0:03:01]}  Nf5 {[%clk 0:03:03]} 8. Qxd8+ {[%clk 0:03:02]}  Kxd8 {[%clk 0:03:04]} 9. Nc3 {[%clk 0:03:03]}  Ke8 {[%clk 0:03:03]} 10. h3 {[%clk 0:03:01]}  h5 {[%clk 0:03:02]} 11. Bg5 {[%clk 0:03:01]}  Be7 {[%clk 0:03:02]} 12. Rad1 {[%clk 0:03:01]}  Be6 {[%clk 0:03:02]} 13. b3 {[%clk 0:03:00]}  h4 {[%clk 0:03:02]} 14. Kh2 {[%clk 0:02:35]}  Rh5 {[%clk 0:02:54]} 15. Bxe7 {[%clk 0:02:27]}  Nxe7 {[%clk 0:02:54]} 16. Rfe1 {[%clk 0:02:24]}  Ng6 {[%clk 0:02:49]} 17. Ne4 {[%clk 0:01:44]}  Rd8 {[%clk 0:02:03]} 18. Rxd8+ {[%clk 0:01:26]}  Kxd8 {[%clk 0:02:02]} 19. Neg5 {[%clk 0:01:27]}  Ke7 {[%clk 0:01:59]} 20. c4 {[%clk 0:01:16]}  Rh8 {[%clk 0:01:33]} 21. Nxe6 {[%clk 0:01:06]}  fxe6 {[%clk 0:01:32]} 22. Re4 {[%clk 0:01:06]}  a5 {[%clk 0:01:02]} 23. Rg4 {[%clk 0:01:02]}  Kf7 {[%clk 0:00:57]} 24. Ng5+ {[%clk 0:01:00]}  Ke7 {[%clk 0:00:57]} 25. Nf3 {[%clk 0:00:48]}  Kf7 {[%clk 0:00:56]} 26. Ng5+ {[%clk 0:00:40]}  Ke7 {[%clk 0:00:56]} 27. f4 {[%clk 0:00:41]}  Rh6 {[%clk 0:00:29]} 28. Kg1 {[%clk 0:00:38]}  b5 {[%clk 0:00:25]} 29. a4 {[%clk 0:00:35]}  bxa4 {[%clk 0:00:23]} 30. bxa4 {[%clk 0:00:35]}  Rh8 {[%clk 0:00:19]} 31. Nf3 {[%clk 0:00:20]}  Kf7 {[%clk 0:00:20]} 32. Ng5+ {[%clk 0:00:18]}  Ke7 {[%clk 0:00:20]} 33. Nxe6 {[%clk 0:00:06]}  Nxe5 {[%clk 0:00:20]} 34. fxe5 {[%clk 0:00:07]}  Kxe6 {[%clk 0:00:20]} 35. Rxg7 {[%clk 0:00:07]}  Kxe5 {[%clk 0:00:19]} 36. Rxc7 {[%clk 0:00:07]}  Kd6 {[%clk 0:00:20]} 37. Ra7 {[%clk 0:00:08]}  Kc5 {[%clk 0:00:20]} 38. Rxa5+ {[%clk 0:00:08]}  Kxc4 {[%clk 0:00:21]} 39. Rg5 {[%clk 0:00:05]}  c5 {[%clk 0:00:20]} 40. a5 {[%clk 0:00:05]}  Kb4 {[%clk 0:00:17]} 41. Rg7 {[%clk 0:00:01]}  Kxa5 {[%clk 0:00:15]} 42. Rc7 {[%clk 0:00:01]}  Kb4 {[%clk 0:00:15]} 43. Rb7+ {[%clk 0:00:02]}  Kc3 {[%clk 0:00:15]} 44. Kf2 {[%clk 0:00:02]}  c4 {[%clk 0:00:15]} 45. Kf3 {[%clk 0:00:02]}  Kc2 {[%clk 0:00:15]} 46. g3 {[%clk 0:00:01]}  hxg3 {[%clk 0:00:11]} 47. Kxg3 {[%clk 0:00:02]}  c3 {[%clk 0:00:08]} 48. Rc7 {[%clk 0:00:03]}  Kb2 {[%clk 0:00:06]} 49. h4 {[%clk 0:00:03]}  c2 {[%clk 0:00:07]} 50. Kg4 {[%clk 0:00:03]}  c1=Q {[%clk 0:00:06]} 51. Rxc1 {[%clk 0:00:03]}  Kxc1 {[%clk 0:00:07]} 52. Kg5 {[%clk 0:00:03]}  Kd2 {[%clk 0:00:07]} 53. h5 {[%clk 0:00:04]}  Ke3 {[%clk 0:00:08]} 54. h6 {[%clk 0:00:04]}  Ke4 {[%clk 0:00:08]} 55. Kg6 {[%clk 0:00:04]}  Kf4 {[%clk 0:00:07]} 56. Kg7 {[%clk 0:00:04]}  Ra8 {[%clk 0:00:07]} 57. h7 {[%clk 0:00:05]}  Kg5 {[%clk 0:00:07]} 58. h8=Q {[%clk 0:00:04]}  Rxh8 {[%clk 0:00:05]} 59. Kxh8 {[%clk 0:00:05]} 1/2-1/2


[Site "https://www.chess.com"]

[Event "Titled Tuesday Blitz July 26 Early 2022"]
[White "Altman, Joshua"]
[Black "Wagner, Dennis"]
[WhiteFideId "426210"]
[BlackFideId "24650684"]
[WhiteElo "1945"]
[BlackElo "2355"]
[Result "1/2-1/2"]
[Round "11"]
[TimeControl "180+1"]
[Date "2022.07.26"]
[WhiteClock "0:00:08"]
[BlackClock "0:00:06"]

1. d4 {[%clk 0:03:00]}  Nf6 {[%clk 0:02:59]} 2. c4 {[%clk 0:03:01]}  e6 {[%clk 0:02:59]} 3. Nf3 {[%clk 0:03:01]}  Bb4+ {[%clk 0:02:58]} 4. Nbd2 {[%clk 0:03:01]}  O-O {[%clk 0:02:57]} 5. a3 {[%clk 0:03:00]}  Be7 {[%clk 0:02:57]} 6. e4 {[%clk 0:02:58]}  d6 {[%clk 0:02:58]} 7. Bd3 {[%clk 0:02:54]}  Nfd7 {[%clk 0:02:55]} 8. O-O {[%clk 0:02:54]}  e5 {[%clk 0:02:56]} 9. d5 {[%clk 0:02:54]}  a5 {[%clk 0:02:55]} 10. Rb1 {[%clk 0:02:52]}  Nc5 {[%clk 0:02:55]} 11. Bc2 {[%clk 0:02:51]}  a4 {[%clk 0:02:55]} 12. Re1 {[%clk 0:02:49]}  f5 {[%clk 0:02:37]} 13. exf5 {[%clk 0:02:48]}  Bxf5 {[%clk 0:02:38]} 14. Bxf5 {[%clk 0:02:48]}  Rxf5 {[%clk 0:02:39]} 15. Qc2 {[%clk 0:02:46]}  Qd7 {[%clk 0:02:35]} 16. Nf1 {[%clk 0:02:41]}  Nba6 {[%clk 0:02:25]} 17. Ng3 {[%clk 0:02:39]}  Rf7 {[%clk 0:02:22]} 18. Be3 {[%clk 0:02:32]}  Raf8 {[%clk 0:02:22]} 19. Nd2 {[%clk 0:02:26]}  Bh4 {[%clk 0:02:11]} 20. Nde4 {[%clk 0:02:22]}  Bxg3 {[%clk 0:02:10]} 21. hxg3 {[%clk 0:02:17]}  Qf5 {[%clk 0:02:02]} 22. Bxc5 {[%clk 0:02:02]}  Nxc5 {[%clk 0:02:00]} 23. f3 {[%clk 0:02:00]}  Qg6 {[%clk 0:01:53]} 24. g4 {[%clk 0:01:49]}  Rf4 {[%clk 0:01:53]} 25. Qd2 {[%clk 0:01:23]}  Nxe4 {[%clk 0:01:50]} 26. fxe4 {[%clk 0:01:24]}  Rxe4 {[%clk 0:01:51]} 27. Rf1 {[%clk 0:01:23]}  Rxg4 {[%clk 0:01:41]} 28. Rxf8+ {[%clk 0:01:22]}  Kxf8 {[%clk 0:01:42]} 29. Rf1+ {[%clk 0:01:22]}  Kg8 {[%clk 0:01:43]} 30. Qf2 {[%clk 0:01:16]}  Rf4 {[%clk 0:01:37]} 31. Qa7 {[%clk 0:01:16]}  Rxf1+ {[%clk 0:01:37]} 32. Kxf1 {[%clk 0:01:17]}  Qb1+ {[%clk 0:01:34]} 33. Kf2 {[%clk 0:01:12]}  Qxb2+ {[%clk 0:01:35]} 34. Kg3 {[%clk 0:01:13]}  Qxa3+ {[%clk 0:01:12]} 35. Kh2 {[%clk 0:01:12]}  Kf7 {[%clk 0:01:00]} 36. Qxb7 {[%clk 0:01:10]}  Qc5 {[%clk 0:00:58]} 37. Qc8 {[%clk 0:01:09]}  Kf6 {[%clk 0:00:19]} 38. Qf8+ {[%clk 0:00:31]}  Kg6 {[%clk 0:00:16]} 39. g4 {[%clk 0:00:23]}  Kh6 {[%clk 0:00:05]} 40. Qf5 {[%clk 0:00:17]}  g6 {[%clk 0:00:06]} 41. Qf6 {[%clk 0:00:07]}  Qe3 {[%clk 0:00:03]} 42. Qh4+ {[%clk 0:00:07]}  Kg7 {[%clk 0:00:04]} 43. Qe7+ {[%clk 0:00:07]}  Kg8 {[%clk 0:00:04]} 44. Qe8+ {[%clk 0:00:07]}  Kg7 {[%clk 0:00:05]} 45. Qe7+ {[%clk 0:00:08]}  Kh6 {[%clk 0:00:06]} 46. Qh4+ {[%clk 0:00:08]}  Kg7 {[%clk 0:00:06]} 47. Qe7+ {[%clk 0:00:08]} 1/2-1/2


[Site "https://www.chess.com"]

[Event "Titled Tuesday Blitz July 26 Early 2022"]
[White "Amburgy, Ryan"]
[Black "Makovec, Bruno"]
[WhiteFideId "30924820"]
[BlackFideId "14536331"]
[WhiteElo "2066"]
[BlackElo "2316"]
[Result "*"]
[Round "11"]
[TimeControl "180+1"]
[Date "2022.07.26"]
[WhiteClock "0:02:36"]
[BlackClock "0:01:55"]

1. d4 {[%clk 0:03:00]}  Nf6 {[%clk 0:02:59]} 2. Nc3 {[%clk 0:02:59]}  d5 {[%clk 0:02:59]} 3. Bf4 {[%clk 0:03:00]}  a6 {[%clk 0:02:59]} 4. e3 {[%clk 0:03:00]}  c5 {[%clk 0:03:00]} 5. dxc5 {[%clk 0:03:00]}  e6 {[%clk 0:02:58]} 6. b4 {[%clk 0:02:59]}  a5 {[%clk 0:02:55]} 7. a3 {[%clk 0:03:00]}  Bd7 {[%clk 0:02:24]} 8. Nb5 {[%clk 0:02:52]}  Bxb5 {[%clk 0:02:15]} 9. Bxb5+ {[%clk 0:02:53]}  Nc6 {[%clk 0:02:16]} 10. Nf3 {[%clk 0:02:52]}  Be7 {[%clk 0:02:15]} 11. Ne5 {[%clk 0:02:49]}  Qc8 {[%clk 0:02:13]} 12. O-O {[%clk 0:02:44]}  O-O {[%clk 0:02:12]} 13. Bxc6 {[%clk 0:02:40]}  bxc6 {[%clk 0:02:12]} 14. c3 {[%clk 0:02:40]}  Ne4 {[%clk 0:02:09]} 15. Qc2 {[%clk 0:02:40]}  Qd8 {[%clk 0:01:55]} 16. Nxc6 {[%clk 0:02:37]}  Qd7 {[%clk 0:01:54]} 17. Nxe7+ {[%clk 0:02:36]}  Qxe7 {[%clk 0:01:55]} 18. f3 {[%clk 0:02:36]} *


[Site "https://www.chess.com"]

[Event "Titled Tuesday Blitz July 26 Early 2022"]
[White "Avazkhonov, Alikhon"]
[Black "Agasarov, Benik"]
[WhiteFideId "14208504"]
[BlackFideId "13314823"]
[WhiteElo "1739"]
[BlackElo "2683"]
[Result "0-1"]
[Round "11"]
[TimeControl "180+1"]
[Date "2022.07.27"]
[WhiteClock "0:00:02"]
[BlackClock "0:00:36"]

1. e4 {[%clk 0:03:00]}  c6 {[%clk 0:02:54]} 2. Nc3 {[%clk 0:02:59]}  d5 {[%clk 0:02:55]} 3. Nf3 {[%clk 0:03:00]}  Nf6 {[%clk 0:02:53]} 4. e5 {[%clk 0:02:56]}  Ne4 {[%clk 0:02:53]} 5. d4 {[%clk 0:02:53]}  Nxc3 {[%clk 0:02:47]} 6. bxc3 {[%clk 0:02:54]}  Bg4 {[%clk 0:02:45]} 7. h3 {[%clk 0:02:52]}  Bh5 {[%clk 0:02:44]} 8. Bd3 {[%clk 0:02:50]}  e6 {[%clk 0:02:44]} 9. O-O {[%clk 0:02:49]}  Be7 {[%clk 0:02:40]} 10. Be3 {[%clk 0:02:49]}  O-O {[%clk 0:02:40]} 11. c4 {[%clk 0:02:37]}  Bg6 {[%clk 0:02:37]} 12. Rb1 {[%clk 0:02:34]}  b6 {[%clk 0:02:31]} 13. a4 {[%clk 0:02:23]}  Bxd3 {[%clk 0:02:25]} 14. cxd3 {[%clk 0:02:24]}  Nd7 {[%clk 0:02:23]} 15. Qc2 {[%clk 0:02:23]}  Qc8 {[%clk 0:02:21]} 16. Rfc1 {[%clk 0:02:20]}  Qa6 {[%clk 0:02:21]} 17. c5 {[%clk 0:02:12]}  Rfc8 {[%clk 0:02:15]} 18. Rb4 {[%clk 0:01:51]}  Qa5 {[%clk 0:02:12]} 19. Qc3 {[%clk 0:01:51]}  Rab8 {[%clk 0:02:04]} 20. Nd2 {[%clk 0:01:33]}  Qa6 {[%clk 0:01:49]} 21. Nb3 {[%clk 0:01:27]}  h6 {[%clk 0:01:41]} 22. Rb1 {[%clk 0:01:19]}  bxc5 {[%clk 0:01:37]} 23. Nxc5 {[%clk 0:01:19]}  Bxc5 {[%clk 0:01:36]} 24. Rxb8 {[%clk 0:01:18]}  Rxb8 {[%clk 0:01:28]} 25. Rxb8+ {[%clk 0:01:15]}  Nxb8 {[%clk 0:01:29]} 26. Qxc5 {[%clk 0:01:01]}  Qxa4 {[%clk 0:01:27]} 27. Bd2 {[%clk 0:01:01]}  Qb5 {[%clk 0:01:25]} 28. Qd6 {[%clk 0:00:59]}  Na6 {[%clk 0:01:18]} 29. Qd8+ {[%clk 0:00:41]}  Kh7 {[%clk 0:01:18]} 30. Qe7 {[%clk 0:00:10]}  Qxd3 {[%clk 0:01:16]} 31. Be3 {[%clk 0:00:10]}  Qf5 {[%clk 0:00:52]} 32. Qxa7 {[%clk 0:00:09]}  Nb4 {[%clk 0:00:52]} 33. g4 {[%clk 0:00:07]}  Qb1+ {[%clk 0:00:51]} 34. Kg2 {[%clk 0:00:07]}  Qe4+ {[%clk 0:00:50]} 35. Kg3 {[%clk 0:00:07]}  Kg6 {[%clk 0:00:47]} 36. Qc5 {[%clk 0:00:07]}  Nc2 {[%clk 0:00:43]} 37. h4 {[%clk 0:00:02]}  Nxe3 {[%clk 0:00:42]} 38. h5+ {[%clk 0:00:03]}  Kh7 {[%clk 0:00:42]} 39. fxe3 {[%clk 0:00:04]}  Qxe3+ {[%clk 0:00:43]} 40. Kg2 {[%clk 0:00:04]}  Qf4 {[%clk 0:00:40]} 41. Kh3 {[%clk 0:00:02]}  Qf3+ {[%clk 0:00:40]} 42. Kh4 {[%clk 0:00:02]}  Qg2 {[%clk 0:00:36]} 0-1


[Site "https://www.chess.com"]

[Event "Titled Tuesday Blitz July 26 Early 2022"]
[White "Coto Mederos, Michel"]
[Black "Blanco Ronquillo, Humberto L."]
[WhiteFideId "3508528"]
[BlackFideId "3504239"]
[WhiteElo "2427"]
[BlackElo "2423"]
[Result "0-1"]
[Round "11"]
[TimeControl "180+1"]
[Date "2022.07.27"]
[WhiteClock "0:00:08"]
[BlackClock "0:00:25"]

1. c4 {[%clk 0:03:00]}  e6 {[%clk 0:02:57]} 2. Nc3 {[%clk 0:02:55]}  d5 {[%clk 0:02:58]} 3. d4 {[%clk 0:02:55]}  a6 {[%clk 0:02:57]} 4. cxd5 {[%clk 0:02:54]}  exd5 {[%clk 0:02:56]} 5. Nf3 {[%clk 0:02:54]}  h6 {[%clk 0:02:55]} 6. Bf4 {[%clk 0:02:52]}  Nf6 {[%clk 0:02:39]} 7. e3 {[%clk 0:02:51]}  Bd6 {[%clk 0:02:38]} 8. Bxd6 {[%clk 0:02:46]}  Qxd6 {[%clk 0:02:39]} 9. Bd3 {[%clk 0:02:47]}  O-O {[%clk 0:02:36]} 10. O-O {[%clk 0:02:35]}  Bg4 {[%clk 0:02:28]} 11. h3 {[%clk 0:02:35]}  Bxf3 {[%clk 0:02:28]} 12. Qxf3 {[%clk 0:02:35]}  Nbd7 {[%clk 0:02:27]} 13. Rac1 {[%clk 0:02:35]}  c6 {[%clk 0:02:23]} 14. Rc2 {[%clk 0:02:27]}  Rfe8 {[%clk 0:02:22]} 15. Na4 {[%clk 0:02:23]}  Ne4 {[%clk 0:02:17]} 16. a3 {[%clk 0:02:16]}  a5 {[%clk 0:02:02]} 17. Rfc1 {[%clk 0:02:06]}  Ndf6 {[%clk 0:01:24]} 18. Nc5 {[%clk 0:01:55]}  Nxc5 {[%clk 0:01:23]} 19. Rxc5 {[%clk 0:01:54]}  a4 {[%clk 0:01:14]} 20. R5c2 {[%clk 0:01:26]}  g6 {[%clk 0:01:12]} 21. Kh1 {[%clk 0:01:24]}  Kg7 {[%clk 0:01:12]} 22. Re1 {[%clk 0:01:21]}  Re6 {[%clk 0:01:07]} 23. g3 {[%clk 0:01:19]}  h5 {[%clk 0:00:59]} 24. Kg2 {[%clk 0:01:16]}  Qd7 {[%clk 0:00:57]} 25. Qf4 {[%clk 0:01:10]}  Ne8 {[%clk 0:00:54]} 26. Qg5 {[%clk 0:01:08]}  Nd6 {[%clk 0:00:53]} 27. Rce2 {[%clk 0:01:06]}  Rae8 {[%clk 0:00:51]} 28. g4 {[%clk 0:00:56]}  hxg4 {[%clk 0:00:50]} 29. hxg4 {[%clk 0:00:57]}  Qe7 {[%clk 0:00:48]} 30. Qf4 {[%clk 0:00:51]}  g5 {[%clk 0:00:45]} 31. Qg3 {[%clk 0:00:46]}  Rh8 {[%clk 0:00:43]} 32. Rh1 {[%clk 0:00:44]}  Rxh1 {[%clk 0:00:43]} 33. Kxh1 {[%clk 0:00:45]}  Ne4 {[%clk 0:00:41]} 34. Bxe4 {[%clk 0:00:40]}  Rxe4 {[%clk 0:00:42]} 35. Qg1 {[%clk 0:00:36]}  Rxd4 {[%clk 0:00:33]} 36. f3 {[%clk 0:00:30]}  Rc4 {[%clk 0:00:32]} 37. Kg2 {[%clk 0:00:29]}  Qf6 {[%clk 0:00:32]} 38. Kf2 {[%clk 0:00:27]}  Rc5 {[%clk 0:00:32]} 39. Rd2 {[%clk 0:00:27]}  Rb5 {[%clk 0:00:32]} 40. Qc1 {[%clk 0:00:26]}  Rb3 {[%clk 0:00:32]} 41. Rd4 {[%clk 0:00:24]}  Qe5 {[%clk 0:00:31]} 42. Qd2 {[%clk 0:00:21]}  Qh2+ {[%clk 0:00:30]} 43. Ke1 {[%clk 0:00:20]}  Qg1+ {[%clk 0:00:28]} 44. Ke2 {[%clk 0:00:20]}  Rxb2 {[%clk 0:00:28]} 45. Qxb2 {[%clk 0:00:08]}  Qg2+ {[%clk 0:00:25]} 0-1


[Site "https://www.chess.com"]

[Event "Titled Tuesday Blitz July 26 Early 2022"]
[White "Cruz Mendez, Jean Marco"]
[Black "Ramirez Vido, Robert Yorisan"]
[WhiteFideId "3526402"]
[BlackFideId "3513823"]
[WhiteElo "2064"]
[BlackElo "2435"]
[Result "1-0"]
[Round "11"]
[TimeControl "180+1"]
[Date "2022.07.27"]
[WhiteClock "0:00:14"]
[BlackClock "0:00:01"]

1. e4 {[%clk 0:03:00]}  d6 {[%clk 0:02:54]} 2. d4 {[%clk 0:03:00]}  Nf6 {[%clk 0:02:53]} 3. Nc3 {[%clk 0:03:00]}  g6 {[%clk 0:02:53]} 4. f4 {[%clk 0:03:01]}  Bg7 {[%clk 0:02:52]} 5. Nf3 {[%clk 0:03:01]}  c5 {[%clk 0:02:52]} 6. dxc5 {[%clk 0:02:39]}  Qa5 {[%clk 0:02:51]} 7. Bd3 {[%clk 0:02:37]}  Qxc5 {[%clk 0:02:43]} 8. Qe2 {[%clk 0:02:36]}  O-O {[%clk 0:02:43]} 9. Be3 {[%clk 0:02:32]}  Qb4 {[%clk 0:02:44]} 10. O-O-O {[%clk 0:02:07]}  Nxe4 {[%clk 0:02:44]} 11. Bxe4 {[%clk 0:01:41]}  Bxc3 {[%clk 0:02:43]} 12. bxc3 {[%clk 0:01:42]}  Qxe4 {[%clk 0:02:43]} 13. Rd4 {[%clk 0:01:33]}  Qe6 {[%clk 0:02:37]} 14. h4 {[%clk 0:01:25]}  Nc6 {[%clk 0:02:33]} 15. Rdd1 {[%clk 0:01:18]}  h5 {[%clk 0:02:14]} 16. g4 {[%clk 0:01:18]}  Qe4 {[%clk 0:01:50]} 17. Nd2 {[%clk 0:01:01]}  Qa4 {[%clk 0:01:43]} 18. gxh5 {[%clk 0:00:37]}  Bf5 {[%clk 0:01:14]} 19. Nb3 {[%clk 0:00:37]}  Na5 {[%clk 0:00:46]} 20. Nxa5 {[%clk 0:00:32]}  Qxa5 {[%clk 0:00:43]} 21. hxg6 {[%clk 0:00:32]}  Rac8 {[%clk 0:00:20]} 22. gxf7+ {[%clk 0:00:27]}  Rxf7 {[%clk 0:00:21]} 23. Rhg1+ {[%clk 0:00:24]}  Kf8 {[%clk 0:00:21]} 24. Bd4 {[%clk 0:00:24]}  Qa3+ {[%clk 0:00:16]} 25. Kd2 {[%clk 0:00:23]}  Qxa2 {[%clk 0:00:14]} 26. Rc1 {[%clk 0:00:22]}  Qe6 {[%clk 0:00:13]} 27. Qh5 {[%clk 0:00:20]}  Ke8 {[%clk 0:00:12]} 28. Rg7 {[%clk 0:00:17]}  Kd7 {[%clk 0:00:04]} 29. Rxf7 {[%clk 0:00:16]}  Qe4 {[%clk 0:00:02]} 30. Qg5 {[%clk 0:00:14]}  Re8 {[%clk 0:00:01]} 31. Re1 {[%clk 0:00:14]} 1-0


[Site "https://www.chess.com"]